lending/lending_fUSD_20260325
["ID","MTS","AMOUNT","RATE_DAILY","PERIOD"]
[408899522,1774416644834,-380.414142,0.00014379,2]
[408899523,1774416644844,-380.414142,0.00014379,2]
[408899524,1774416644853,-380.414142,0.00014379,2]
[408899525,1774416644863,-151.0,0.00014379,2]
[408899526,1774416644872,-301.565904,0.00014379,2]
[408899527,1774416644882,-301.565904,0.00014379,2]
[408899528,1774416644891,-301.565904,0.00014379,2]
[408899529,1774416644901,-301.565904,0.00014379,2]
[408899530,1774416644910,-153.773105,0.00014379,2]
[408899531,1774416644920,-919.51,0.00014384,2]
[408899532,1774416644929,-151.0,0.00014394,2]
[408899533,1774416644939,-166.66,0.00014397,2]
[408899534,1774416644948,-150.0,0.000144,2]
[408899535,1774416644958,-2987.17,0.000144,2]
[408899536,1774416644967,-3300.2,0.000144,2]
[408899537,1774416644976,-2848.25,0.000144,2]
[408899538,1774416644986,-996.77,0.000144,2]
[408899539,1774416644995,-878.11,0.00014411,2]
[408899540,1774416645005,-2463.0,0.00014425,2]
[408899541,1774416645016,-356.41365572,0.00014429,2]
[408899542,1774416645027,-2463.0,0.00014444,2]
[408899543,1774416645038,-350.0,0.00014451,2]
[408899544,1774416645049,-350.0,0.00014459,2]
[408899545,1774416645059,-173.82306142,0.0001446,2]
[408899546,1774416645070,-281.11467,0.0001446,2]
[408899547,1774416645082,-1000.0,0.00014475,2]
[408899548,1774416645092,-10767.19,0.00014504,2]
[408899549,1774416645103,-3524.28,0.00014504,2]
[408899550,1774416645112,-14574.38,0.00014504,2]
[408899551,1774416645121,-2463.0,0.00014506,2]
[408899552,1774416645131,-255.0,0.00014508,2]
[408899553,1774416645140,-350.0,0.00014511,3]
[408899554,1774416645149,-2463.0,0.00014524,2]
[408899555,1774416645158,-3095.12431556,0.00014527,2]
[408899556,1774416645168,-8472.02718344,0.00014565,2]
[408899557,1774416645177,-2463.0,0.00014573,2]
[408899558,1774416645187,-187.78006525,0.00014585,2]
[408899559,1774416645196,-2472.0,0.00014621,2]
[408899560,1774416645207,-373.407199,0.00014621,2]
[408899561,1774416645216,-373.407199,0.00014621,2]
[408899562,1774416645225,-373.407199,0.00014621,2]
[408899563,1774416645235,-177.909961,0.00014621,2]
[408899564,1774416645244,-373.407199,0.00014621,2]
[408899565,1774416645253,-177.909961,0.00014621,2]
[408899566,1774416645263,-177.909961,0.00014621,2]
[408899567,1774416645272,-177.909961,0.00014621,2]
[408899568,1774416645281,-819.932307,0.00014621,2]
[408899569,1774416645290,-819.932307,0.00014621,2]
[408899570,1774416645300,-819.932307,0.00014621,2]
[408899571,1774416645310,-819.932307,0.00014621,2]
[408899572,1774416645319,-380.414142,0.00014621,2]
[408899573,1774416645329,-380.414142,0.00014621,2]
[408899574,1774416645338,-380.414142,0.00014621,2]
[408899575,1774416645348,-380.414142,0.00014621,2]
[408899576,1774416645358,-301.565904,0.00014621,2]
[408899577,1774416645368,-301.565904,0.00014621,2]
[408899578,1774416645378,-301.565904,0.00014621,2]
[408899579,1774416645387,-301.565904,0.00014621,2]
[408899580,1774416645397,-2463.0,0.00014658,2]
[408899581,1774416645407,-281.11468,0.0001466,2]
[408899582,1774416645416,-150.0,0.00014667,2]
[408899583,1774416645425,-384.45811669,0.00014668,2]
[408899584,1774416645435,-500.0,0.00014668,2]
[408899585,1774416645445,-1500.0,0.00014668,2]
[408899586,1774416645704,-1500.0,0.00014668,2]
[408899587,1774416645714,-1500.0,0.00014668,2]
[408899588,1774416645723,-430.54660974,0.00014668,2]
[408899589,1774416645732,-1500.0,0.00014668,2]
[408899590,1774416645741,-151.0,0.00014685,2]
[408899591,1774416645750,-200.0,0.00014685,2]
[408899592,1774416645759,-878.11,0.00014685,2]
[408899593,1774416645768,-151.0,0.00014685,2]
[408899594,1774416645777,-2135.51888549,0.00014698,2]
[408899595,1774416645786,-293.17693421,0.00014698,2]
[408899596,1774416645794,-306.0,0.000147,2]
[408899597,1774416645802,-638.95886171,0.00014718,2]
[408899598,1774416645811,-2472.0,0.00014726,2]
[408899599,1774416645821,-1680.0,0.00014736,2]
[408899600,1774416645830,-1600.0,0.00014777,2]
[408899601,1774416645839,-154.26142664,0.00014789,2]
[408899602,1774416645848,-1585.14800604,0.00014811,2]
[408899603,1774416645857,-432.60864,0.00014832,2]
[408899604,1774416645866,-432.60864,0.00014832,2]
[408899605,1774416645875,-432.60864,0.00014832,2]
[408899606,1774416645884,-432.60864,0.00014832,2]
[408899607,1774416645893,-8472.02718344,0.00014832,2]
[408899608,1774416645902,-500.0,0.00014836,2]
[408899609,1774416645912,-500.0,0.00014836,2]
[408899610,1774416645921,-500.0,0.00014836,2]
[408899611,1774416645931,-500.0,0.00014836,2]
[408899612,1774416645941,-500.0,0.00014836,2]
[408899613,1774416645953,-500.0,0.00014836,2]
[408899614,1774416645962,-500.0,0.00014836,2]
[408899615,1774416645973,-166.66,0.00014843,2]
[408899616,1774416645982,-766.0,0.00014846,2]
[408899617,1774416645992,-281.11468,0.0001486,2]
[408899618,1774416646001,-3095.12431556,0.0001487,2]
[408899619,1774416646012,-233.67,0.00014881,2]
[408899620,1774416646021,-400.0,0.000149,5]
[408899621,1774416646030,-712.91374359,0.00014937,2]
[408899622,1774416646039,-878.11,0.00014959,2]
[408899623,1774416646049,-2472.0,0.0001496,2]
[408899624,1774416646059,-150.0,0.00014961,2]
[408899625,1774416646068,-2472.0,0.00014989,2]
[408899626,1774416646077,-595.0,0.00015,2]
[408899627,1774416646086,-300.0,0.00015,2]
[408899628,1774416646097,-158.652186,0.00015,2]
[408899629,1774416646106,-158.652186,0.00015,2]
[408899630,1774416646115,-158.652186,0.00015,2]
[408899631,1774416646124,-158.652186,0.00015,2]
[408899632,1774416646133,-151.0,0.00015,2]
[408899633,1774416646143,-151.0,0.00015,2]
[408899634,1774416646152,-151.0,0.00015,2]
[408899635,1774416646161,-2064.46610994,0.00015,2]
[408899636,1774416646171,-8037.03514038,0.00015,2]
[408899637,1774416646180,-999.0,0.00015,2]
[408899638,1774416646191,-312.0,0.00015,2]
[408899639,1774416646201,-597.04664532,0.00015007,2]
[408899640,1774416646211,-597.04664532,0.00015007,2]
[408899641,1774416646220,-298.52332266,0.00015007,2]
[408899642,1774416646229,-1500.0,0.00015023,2]
[408899643,1774416646239,-979.16666667,0.00015028,2]
[408899644,1774416646249,-160.0,0.00015028,2]
[408899645,1774416646258,-281.11467,0.0001506,2]
[408899646,1774416646267,-155.0,0.00015066,2]
[408899647,1774416646276,-583.31,0.00015068,2]
[408899648,1774416646286,-919.51,0.00015068,2]
[408899649,1774416646296,-8472.02718344,0.00015099,2]
[408899650,1774416646307,-194.72792766,0.00015133,2]
[408899651,1774416646316,-151.0,0.0001514,2]
[408899652,1774416646325,-151.0,0.0001514,2]
[408899653,1774416646335,-500.0,0.00015144,2]
[408899654,1774416646345,-190.0,0.00015145,2]
[408899655,1774416646353,-247.94,0.00015188,2]
[408899656,1774416646364,-600.0,0.000152,5]
[408899657,1774416646373,-3095.12431556,0.00015213,2]
[408899658,1774416646383,-380.414142,0.00015216,2]
[408899659,1774416646392,-380.414142,0.00015216,2]
[408899660,1774416646402,-380.414142,0.00015216,2]
[408899661,1774416646411,-380.414141,0.00015216,2]
[408899663,1774416646420,-2000.0,0.00015216,2]
[408899665,1774416646430,-1452.92694426,0.00015216,2]
[408899667,1774416646439,-1000.0,0.00015216,2]
[408899668,1774416646448,-1502.50352387,0.00015216,2]
[408899669,1774416646457,-151.0,0.00015233,2]
[408899670,1774416646466,-200.0,0.00015233,2]
[408899673,1774416646476,-878.11,0.00015233,2]
[408899675,1774416646485,-179.86,0.00015258,2]
[408899676,1774416646494,-281.11468,0.0001526,2]
[408899677,1774416646503,-800.0,0.00015262,2]
[408899678,1774416646512,-779.0,0.00015262,2]
[408899679,1774416646521,-166.66,0.00015289,2]
[408899680,1774416646531,-900.0,0.000153,5]
[408899681,1774416646541,-301.565904,0.000153,2]
[408899682,1774416646551,-301.565904,0.000153,2]
[408899683,1774416646560,-301.565904,0.000153,2]
[408899684,1774416646570,-301.565905,0.000153,2]
[408899685,1774416646580,-350.0,0.00015315,3]
[408899686,1774416646591,-350.0,0.00015353,2]
[408899687,1774416646600,-151.0,0.00015363,2]
[408899688,1774416646610,-1500.0,0.00015366,2]
[408899689,1774416646619,-1500.0,0.00015366,2]
[408899690,1774416646630,-1500.0,0.00015366,2]
[408899691,1774416646639,-1500.0,0.00015366,2]
[408899692,1774416646649,-1974.494984,0.00015366,2]
[408899693,1774416646659,-158.652186,0.00015366,2]
[408899694,1774416646668,-158.652186,0.00015366,2]
[408899695,1774416646678,-158.652186,0.00015366,2]
[408899696,1774416646686,-158.652184,0.00015366,2]
[408899697,1774416646696,-151.0,0.00015366,2]
[408899698,1774416646706,-151.0,0.00015366,2]
[408899699,1774416646715,-151.0,0.00015366,2]
[408899700,1774416646726,-373.407199,0.00015366,2]
[408899701,1774416646735,-373.407199,0.00015366,2]
[408899702,1774416646745,-373.407199,0.00015366,2]
[408899703,1774416646755,-177.909961,0.00015366,2]
[408899704,1774416646764,-373.40719,0.00015366,2]
[408899705,1774416646772,-177.909961,0.00015366,2]
[408899706,1774416646781,-177.909961,0.00015366,2]
[408899707,1774416646790,-177.909961,0.00015366,2]
[408899708,1774416646799,-819.932307,0.00015366,2]
[408899709,1774416646808,-819.932307,0.00015366,2]
[408899710,1774416646818,-819.932307,0.00015366,2]
[408899711,1774416646827,-819.932306,0.00015366,2]
[408899712,1774416646836,-8472.02718344,0.00015366,2]
[408899713,1774416646845,-1262.0,0.00015381,2]
[408899714,1774416646854,-150.0,0.00015381,2]
[408899715,1774416646863,-924.0,0.00015381,2]
[408899716,1774416646872,-1216.0,0.00015381,2]
[408899717,1774416646881,-3516.0,0.00015381,2]
[408899718,1774416646889,-1345.0,0.00015381,2]
[408899719,1774416646898,-6010.0,0.00015381,2]
[408899720,1774416646907,-432.60864,0.00015381,2]
[408899721,1774416646917,-432.60864,0.00015381,2]
[408899722,1774416646926,-432.60864,0.00015381,2]
[408899723,1774416646935,-432.608647,0.00015381,2]
[408899724,1774416646944,-151.0,0.00015381,2]
[408899725,1774416646953,-413.0,0.00015385,5]
[408899726,1774416646962,-151.0,0.000154,2]
[408899727,1774416646972,-1100.0,0.000154,5]
[408899728,1774416646981,-2403.0,0.000154,2]
[408899729,1774416646990,-2000.0,0.000154,2]
[408899730,1774416646999,-150.0,0.00015401,2]
[408899731,1774416647009,-190.0,0.0001541,2]
[408899732,1774416647018,-515.02634622,0.00015437,2]
[408899733,1774416647027,-516.15405713,0.00015437,2]
[408899734,1774416647036,-520.54835623,0.00015437,2]
[408899735,1774416647045,-500.0,0.00015437,2]
[408899736,1774416647055,-678.42,0.00015437,2]
[408899737,1774416647064,-800.0,0.00015451,2]
[408899738,1774416647073,-190.0,0.00015459,2]
[408899739,1774416647082,-281.11468,0.0001546,2]
[408899740,1774416647091,-350.0,0.00015491,2]
[408899741,1774416647101,-200.0,0.000155,5]
[408899742,1774416647110,-2000.0,0.000155,2]
[408899743,1774416647119,-4000.0,0.00015507,2]
[408899744,1774416647129,-878.13080658,0.00015507,2]
[408899745,1774416647138,-150.0,0.00015543,2]
[408899746,1774416647148,-150.0,0.00015543,2]
[408899747,1774416647157,-150.0,0.00015543,2]
[408899748,1774416647166,-150.0,0.00015543,2]
[408899749,1774416647176,-150.0,0.00015543,2]
[408899750,1774416647185,-150.0,0.00015543,2]
[408899751,1774416647194,-150.0,0.00015543,2]
[408899752,1774416647203,-150.0,0.00015543,2]
[408899753,1774416647212,-150.0,0.00015543,2]
[408899754,1774416647221,-150.0,0.00015543,2]
[408899755,1774416647230,-150.0,0.00015543,2]
[408899756,1774416647239,-186.768,0.00015543,2]
[408899757,1774416647248,-150.0,0.00015543,2]
[408899758,1774416647257,-3095.12431556,0.00015557,2]
[408899759,1774416647266,-2000.0,0.00015571,2]
[408899760,1774416647276,-233.67,0.00015589,2]
[408899761,1774416647286,-527.31892691,0.000156,2]
[408899762,1774416647296,-197.2224,0.000156,2]
[408899763,1774416647305,-200.0,0.000156,5]
[408899764,1774416647314,-10000.0,0.00015605,2]
[408899765,1774416647324,-8472.02718344,0.00015633,2]
[408899766,1774416647333,-1586.93378641,0.00015634,2]
[408899767,1774416647343,-2788.68287909,0.00015679,2]
[408899768,1774416647352,-1569.0,0.0001568,2]
[408899769,1774416647361,-1567.0,0.0001568,2]
[408899770,1774416647370,-201.93286099,0.00015681,2]
[408899771,1774416647379,-258.0,0.00015695,5]
[408899772,1774416647388,-190.0,0.00015695,2]
[408899773,1774416647398,-190.0,0.00015699,2]
[408899774,1774416647407,-200.0,0.000157,5]
[408899775,1774416647416,-569.783453,0.00015701,7]
[408899776,1774416647425,-433.0,0.00015713,2]
[408899777,1774416647434,-1400.0,0.00015725,2]
[408899778,1774416647443,-166.66,0.00015734,2]
[408899779,1774416647452,-190.0,0.00015744,2]
[408899780,1774416647462,-190.0,0.00015753,2]
[408899781,1774416647471,-919.51,0.00015753,2]
[408899782,1774416647480,-2261.329403,0.00015761,7]
[408899783,1774416647490,-190.0,0.00015764,2]
[408899784,1774416647499,-2500.0,0.00015764,2]
[408899785,1774416647508,-343.79810186,0.0001577,2]
[408899786,1774416647516,-500.0,0.0001577,2]
[408899787,1774416647525,-500.0,0.0001577,2]
[408899788,1774416647534,-151.0,0.00015781,2]
[408899789,1774416647544,-200.0,0.00015781,2]
[408899790,1774416647553,-200.0,0.000158,5]
[408899791,1774416647562,-247.94,0.00015812,2]
[408899792,1774416647571,-5089.637205,0.00015813,7]
[408899793,1774416647580,-190.0,0.00015825,2]
[408899794,1774416647593,-179.86,0.00015831,2]
[408899795,1774416647602,-150.0,0.00015841,2]
[408899796,1774416647611,-1166.66,0.00015862,2]
[408899797,1774416647620,-151.0,0.0001589,2]
[408899798,1774416647630,-250.0,0.0001589,2]
[408899799,1774416647639,-2000.0,0.0001589,2]
[408899800,1774416647648,-151.0,0.00015892,2]
[408899801,1774416647658,-4000.0,0.00015895,2]
[408899802,1774416647667,-447.86798038,0.00015899,2]
[408899803,1774416647676,-678.42,0.00015899,2]
[408899804,1774416647686,-500.0,0.00015899,2]
[408899805,1774416647695,-293.17693421,0.00015899,2]
[408899806,1774416647703,-600.0,0.000159,5]
[408899807,1774416647712,-3095.12431556,0.000159,2]
[408899808,1774416647721,-8472.02718344,0.000159,2]
[408899809,1774416647730,-167.64656967,0.000159,2]
[408899810,1774416647739,-2000.0,0.00015904,2]
[408899811,1774416647748,-502.93024548,0.00015973,2]
[408899812,1774416647757,-349.49866437,0.00015973,2]
[408899813,1774416647766,-500.0,0.00015973,2]
[408899814,1774416647775,-501.96682741,0.00015973,2]
[408899815,1774416647785,-500.0,0.00015973,2]
[408899816,1774416647794,-500.0,0.00015973,2]
[408899817,1774416647803,-500.48528064,0.00015973,2]
[408899818,1774416647812,-500.0,0.00015973,2]
[408899819,1774416647821,-500.0,0.00015973,2]
[408899820,1774416647831,-500.0,0.00015973,2]
[408899821,1774416647840,-500.0,0.00015973,2]
[408899822,1774416647849,-500.0,0.00015973,2]
[408899823,1774416647858,-500.0,0.00015973,2]
[408899824,1774416647867,-500.0,0.00015973,2]
[408899825,1774416647877,-407.9868591,0.00015973,2]
[408899826,1774416647886,-465.98930222,0.00015973,2]
[408899827,1774416647896,-500.0,0.00015973,2]
[408899828,1774416647904,-500.0,0.00015973,2]
[408899829,1774416647913,-500.0,0.00015973,2]
[408899830,1774416647923,-500.0,0.00015973,2]
[408899831,1774416648007,-500.0,0.00015973,2]
[408899832,1774416648017,-500.0,0.00015973,2]
[408899833,1774416648028,-500.0,0.00015973,2]
[408899834,1774416648038,-500.0,0.00015973,2]
[408899835,1774416648047,-500.0,0.00015973,2]
[408899836,1774416648056,-500.0,0.00015973,2]
[408899837,1774416648067,-500.0,0.00015973,2]
[408899838,1774416648076,-500.25552119,0.00015973,2]
[408899839,1774416648087,-500.0,0.00015973,2]
[408899840,1774416648099,-173.13019174,0.00015989,2]
[408899841,1774416648108,-151.0,0.00015996,2]
[408899842,1774416648118,-151.0,0.00015996,2]
[408899843,1774416648127,-151.0,0.00015997,2]
[408899844,1774416648136,-500.0,0.00015998,2]
[408899845,1774416648145,-150.0,0.00015999,2]
[408899846,1774416648154,-1059.40403257,0.00015999,2]
[408899847,1774416648164,-150.0,0.00015999,2]
[408899848,1774416648173,-11980.29999385,0.00015999,2]
[408899849,1774416648182,-38276.46420365,0.00015999,2]
[408899850,1774416648687,-2129.56782122,0.00015999,2]
[408899851,1774416648741,-81590.00443991,0.00015999,2]
[408899852,1774416648752,-14898.16111939,0.00015999,2]
[408899853,1774416648761,-6552.6845515,0.00015999,2]
[408899854,1774416648771,-678.42,0.00015999,2]
[408899855,1774416648779,-678.42,0.00015999,2]
[408899856,1774416648789,-678.42,0.00015999,2]
[408899857,1774416648798,-678.42,0.00015999,2]
[408899858,1774416648807,-678.42,0.00015999,2]
[408899859,1774416648816,-678.42,0.00015999,2]
[408899860,1774416648825,-678.42,0.00015999,2]
[408899861,1774416648834,-678.42,0.00015999,2]
[408899862,1774416648843,-678.42,0.00015999,2]
[408899863,1774416648856,-678.42,0.00015999,2]
[408899864,1774416648865,-678.42,0.00015999,2]
[408899865,1774416648874,-678.42,0.00015999,2]
[408899866,1774416648883,-678.42,0.00015999,2]
[408899867,1774416648893,-678.42,0.00015999,2]
[408899868,1774416648902,-678.42,0.00015999,2]
[408899869,1774416648911,-678.42,0.00015999,2]
[408899870,1774416648920,-678.42,0.00015999,2]
[408899871,1774416648929,-678.42,0.00015999,2]
[408899872,1774416648939,-678.42,0.00015999,2]
[408899873,1774416648948,-678.42,0.00015999,2]
[408899874,1774416648958,-678.48256893,0.00015999,2]
[408899875,1774416648967,-500.0,0.00015999,2]
[408899876,1774416648977,-500.0,0.00015999,2]
[408899877,1774416648986,-500.0,0.00015999,2]
[408899878,1774416648996,-500.0,0.00015999,2]
[408899879,1774416649005,-500.0,0.00015999,2]
[408899880,1774416649014,-500.0,0.00015999,2]
[408899881,1774416649023,-500.0,0.00015999,2]
[408899882,1774416649033,-500.0,0.00015999,2]
[408899883,1774416649042,-500.0,0.00015999,2]
[408899884,1774416649052,-500.0,0.00015999,2]
[408899885,1774416649062,-500.0,0.00015999,2]
[408899886,1774416649071,-500.0,0.00015999,2]
[408899887,1774416649081,-500.0,0.00015999,2]
[408899888,1774416649091,-500.0,0.00015999,2]
[408899889,1774416649100,-500.0,0.00015999,2]
[408899890,1774416649109,-500.0,0.00015999,2]
[408899891,1774416649120,-500.0,0.00015999,2]
[408899892,1774416649129,-500.0,0.00015999,2]
[408899893,1774416649139,-500.0,0.00015999,2]
[408899894,1774416649148,-500.0,0.00015999,2]
[408899895,1774416649158,-500.0,0.00015999,2]
[408899896,1774416649167,-500.0,0.00015999,2]
[408899897,1774416649176,-500.0,0.00015999,2]
[408899898,1774416649186,-500.0,0.00015999,2]
[408899899,1774416649195,-500.0,0.00015999,2]
[408899900,1774416649204,-500.0,0.00015999,2]
[408899901,1774416649214,-500.0,0.00015999,2]
[408899902,1774416649224,-500.0,0.00015999,2]
[408899903,1774416649233,-500.0,0.00015999,2]
[408899904,1774416649242,-500.0,0.00015999,2]
[408899905,1774416649252,-500.0,0.00015999,2]
[408899906,1774416649261,-500.0,0.00015999,2]
[408899907,1774416649270,-500.0,0.00015999,2]
[408899908,1774416649280,-500.0,0.00015999,2]
[408899909,1774416649289,-500.0,0.00015999,2]
[408899910,1774416649298,-500.0,0.00015999,2]
[408899911,1774416649307,-500.0,0.00015999,2]
[408899912,1774416649318,-500.0,0.00015999,2]
[408899913,1774416649327,-500.0,0.00015999,2]
[408899914,1774416649337,-500.0,0.00015999,2]
[408899915,1774416649346,-500.0,0.00015999,2]
[408899916,1774416649356,-500.0,0.00015999,2]
[408899917,1774416649365,-500.0,0.00015999,2]
[408899918,1774416649374,-500.0,0.00015999,2]
[408899919,1774416649384,-500.0,0.00015999,2]
[408899920,1774416649393,-500.0,0.00015999,2]
[408899921,1774416649402,-500.0,0.00015999,2]
[408899922,1774416649411,-500.0,0.00015999,2]
[408899923,1774416649421,-500.0,0.00015999,2]
[408899924,1774416649430,-500.0,0.00015999,2]
[408899925,1774416649440,-500.0,0.00015999,2]
[408899926,1774416649449,-162.46561738,0.00015999,2]
[408899927,1774416649459,-227.82184393,0.00015999,2]
[408899928,1774416649468,-172991.75038403,0.00016,2]
[408899929,1774416649486,-1198.6927122,0.00016,2]
[408899930,1774416649499,-926.84030776,0.00016,2]
[408899931,1774416649708,-35521.23805416,0.00016,2]
[408899932,1774416649835,-151.0,0.00013558,2]
[408899933,1774416649845,-237.7,0.00015499,2]
[408899934,1774416649855,-428.35,0.00016,2]
[408899935,1774416649885,-2627.393217,0.00016,2]
[408899936,1774416649897,-1065.32192759,0.00016,2]
[408899937,1774416649914,-4445.91469702,0.00016,2]
[408899938,1774416649925,-1596.60636493,0.00016,2]
[408899939,1774416649937,-273162.95922361,0.00016,2]
[408899940,1774416649949,-2230.07439838,0.00016,2]
[408899945,1774416935887,1100.35,0.00012647,2]
[408899946,1774417173331,-250.0,0.00013,2]
[408899947,1774417173358,-300.0,0.00013372,2]
[408899948,1774417173386,-250.0,0.00013373,2]
[408899949,1774417173415,-2382.27392318,0.00013373,2]
[408899950,1774417174031,-3635.46215364,0.00013373,2]
[408899951,1774417174165,-1527.98281649,0.00013373,2]
[408899952,1774417174211,-5136.30826699,0.00013373,2]
[408899953,1774417174286,-1807.73610003,0.00013373,2]
[408899954,1774417174317,-2708.23377615,0.00013373,2]
[408899955,1774417174344,-151.0,0.00013394,2]
[408899956,1774417174371,-150.0,0.00013395,2]
[408899957,1774417175063,-500.0,0.00013396,2]
[408899958,1774417175090,-500.20251472,0.00013396,2]
[408899959,1774417175118,-500.0,0.00013396,2]
[408899960,1774417175150,-273.76992483,0.00013396,2]
[408899961,1774417175179,-500.0,0.00013396,2]
[408899962,1774417175206,-500.0,0.00013396,2]
[408899963,1774417175233,-492.68951053,0.00013396,2]
[408899964,1774417175264,-621.38713532,0.00013396,2]
[408899965,1774417175292,-531.08846791,0.00013396,2]
[408899966,1774417175325,-540.34775806,0.00013396,2]
[408899967,1774417175834,-81.03937726,0.00013396,2]
[408899968,1774417175845,-366.07024764,0.00013396,2]
[408899969,1774417176281,-133.92975236,0.00013396,2]
[408899970,1774417176311,-493.20052419,0.00013396,2]
[408899971,1774417176347,-621.38713532,0.00013396,2]
[408899972,1774417176382,-621.38713532,0.00013396,2]
[408899973,1774417176410,-418.01099323,0.00013396,2]
[408899974,1774417176443,-621.38713532,0.00013396,2]
[408899975,1774417176474,-621.38713532,0.00013396,2]
[408899976,1774417176501,-500.0,0.00013396,2]
[408899977,1774417176533,-621.38713532,0.00013396,2]
[408899978,1774417176566,-74.46897192,0.00013396,2]
[408899979,1774417176656,-546.9181634,0.00013396,2]
[408899980,1774417176688,-621.38713532,0.00013396,2]
[408899981,1774417176721,-621.38713532,0.00013396,2]
[408899982,1774417176754,-621.38713532,0.00013396,2]
[408899983,1774417176786,-621.38713532,0.00013396,2]
[408899984,1774417176815,-621.38713532,0.00013396,2]
[408899985,1774417176845,-621.38713532,0.00013396,2]
[408899986,1774417176876,-621.38713532,0.00013396,2]
[408899987,1774417177395,-546.9181634,0.00013396,2]
[408899988,1774417177410,-74.46897192,0.00013396,2]
[408899989,1774417177420,-132.2848068,0.00013396,2]
[408899990,1774417179300,-489.10232852,0.00013396,2]
[408899991,1774417179330,-621.38713532,0.00013396,2]
[408899992,1774417179362,-621.38713532,0.00013396,2]
[408899993,1774417179394,-621.38713532,0.00013396,2]
[408899994,1774417179427,-621.38713532,0.00013396,2]
[408899995,1774417179458,-621.38713532,0.00013396,2]
[408899996,1774417179488,-621.38713532,0.00013396,2]
[408899997,1774417179519,-621.38713532,0.00013396,2]
[408899998,1774417179616,-621.38713532,0.00013396,2]
[408899999,1774417179648,-621.38713532,0.00013396,2]
[408900000,1774417179679,-621.38713532,0.00013396,2]
[408900001,1774417179709,-621.38713532,0.00013396,2]
[408900002,1774417179737,-500.0,0.00013396,2]
[408900003,1774417179771,-621.38713532,0.00013396,2]
[408900004,1774417179802,-621.38713532,0.00013396,2]
[408900005,1774417179836,-621.38713532,0.00013396,2]
[408900006,1774417179921,-621.38713532,0.00013396,2]
[408900007,1774417179953,-621.38713532,0.00013396,2]
[408900008,1774417179986,-621.38713532,0.00013396,2]
[408900009,1774417180018,-621.38713532,0.00013396,2]
[408900010,1774417180048,-621.38713532,0.00013396,2]
[408900011,1774417180079,-621.38713532,0.00013396,2]
[408900012,1774417180110,-621.38713532,0.00013396,2]
[408900013,1774417180139,-621.38713532,0.00013396,2]
[408900014,1774417180216,-621.38713532,0.00013396,2]
[408900015,1774417180247,-621.38713532,0.00013396,2]
[408900016,1774417180278,-621.38713532,0.00013396,2]
[408900017,1774417180308,-621.38713532,0.00013396,2]
[408900018,1774417180339,-621.38713532,0.00013396,2]
[408900019,1774417180368,-621.38713532,0.00013396,2]
[408900020,1774417180398,-621.38713532,0.00013396,2]
[408900021,1774417180430,-621.38713532,0.00013396,2]
[408900022,1774417180907,-59.40425356,0.00013396,2]
[408900023,1774417180926,-561.98288176,0.00013396,2]
[408900024,1774417180936,-59.40425356,0.00013396,2]
[408900025,1774417180951,-57.81583488,0.00013396,2]
[408900026,1774417182316,-504.16704688,0.00013396,2]
[408900027,1774417182354,-621.38713532,0.00013396,2]
[408900028,1774417182385,-621.38713532,0.00013396,2]
[408900029,1774417182417,-621.38713532,0.00013396,2]
[408900030,1774417182449,-621.38713532,0.00013396,2]
[408900031,1774417182482,-621.38713532,0.00013396,2]